bitfinex-derivatives/quotes_ETHF0:USTF0_20260104
["timestamp","ask_amount","ask_price","bid_price","bid_amount"]
[1767535413734,4.369,3140.3,3139.1,0.14853281]
[1767535416137,4.368,3140.2,3139.1,0.14853281]
[1767535417042,0.00478179,3140.8,3139.2,6.0]
[1767535417342,0.00478179,3140.8,3139.3,0.14501528]
[1767535418234,0.00478179,3140.8,3139.4,0.15933]
[1767535418538,0.00478179,3140.8,3139.5,0.14501528]
[1767535419329,0.00478179,3140.8,3139.5,0.30434528]
[1767535419530,0.00478179,3140.8,3139.6,0.14501528]
[1767535420541,0.00478179,3140.8,3139.6,6.30433528]
[1767535420737,0.00478179,3140.8,3139.7,0.14501528]
[1767535425540,0.00478179,3140.8,3139.7,6.14501528]
[1767535425745,0.00478179,3140.8,3139.8,0.14501528]
[1767535430443,0.00478179,3140.8,3139.2,5.74073151]
[1767535430645,0.00340709,3141.2,3140.1,0.14501528]
[1767535431646,0.00340709,3141.2,3140.3,0.14501528]
[1767535440544,0.00340709,3141.2,3140.0,0.00478179]
[1767535441046,6.00340709,3141.2,3140.0,0.00478179]
[1767535441250,0.12985811,3141.2,3140.0,0.00478179]
[1767535441450,6.0,3141.1,3140.0,0.00478179]
[1767535441650,0.12607749,3141.0,3139.2,40.8]
[1767535441954,0.12607749,3140.9,3139.1,0.13553951]
[1767535442349,0.12607749,3140.9,3139.2,0.13202198]
[1767535447058,6.0,3140.8,3139.2,0.13202198]
[1767535448054,0.00478179,3140.9,3139.2,0.13202198]
[1767535448255,0.00478179,3140.9,3139.2,0.29136198]
[1767535448449,0.00478179,3140.9,3139.3,0.13202198]
[1767535451549,0.00478179,3140.9,3139.3,10.32702198]
[1767535451753,0.00478179,3140.9,3139.4,0.13202198]
[1767535453459,6.1187815,3140.9,3139.4,0.13202198]
[1767535454462,0.1187815,3140.9,3139.4,0.13202198]
[1767535455460,0.11253154,3140.7,3139.2,0.15934]
[1767535455866,0.11253154,3140.7,3139.2,0.29136198]
[1767535456371,0.00478179,3140.9,3139.3,0.13202198]
[1767535464062,0.15927,3140.7,3139.3,0.13202198]
[1767535466961,0.15927,3140.6,3139.3,0.13202198]
[1767535467553,0.00478179,3140.9,3139.4,0.13202198]
[1767535474065,0.15928,3140.6,3139.1,0.00351753]
[1767535474370,0.1134002,3140.9,3139.1,0.00351753]
[1767535474371,0.15928,3140.5,3139.1,0.00351753]
[1767535476168,0.15928,3140.4,3139.1,0.00351753]
[1767535478971,4.51929,3140.3,3139.1,0.00351753]
[1767535479172,0.1593,3140.1,3139.1,0.00351753]
[1767535482980,0.1593,3140.0,3139.1,0.00351753]
[1767535483376,6.1593,3140.0,3139.1,0.00351753]
[1767535483679,0.1593,3140.0,3138.6,0.13619152]
[1767535484476,0.1593,3140.0,3138.6,0.13866202]
[1767535498679,0.15931,3139.9,3138.6,0.13866202]
[1767535538932,0.15931,3139.8,3138.6,0.13866202]
[1767535539123,0.15931,3139.8,3138.6,0.0024705]
[1767535542837,6.27445445,3139.8,3138.6,0.0024705]
[1767535544430,0.27445445,3139.8,3138.6,0.0024705]
[1767535546742,0.15931,3139.8,3138.6,0.0024705]
[1767535547640,0.15931,3139.8,3138.6,0.14604967]
[1767535550336,0.15931,3139.8,3138.6,0.0024705]
[1767535559951,0.15931,3139.8,3138.6,0.14604967]
[1767535587168,0.97813233,3139.7,3137.9,0.1417544]
[1767535587363,3.187,3139.9,3137.9,0.1417544]
[1767535587563,0.97813909,3139.8,3137.9,0.1417544]
[1767535587762,0.97813909,3139.7,3137.9,0.1417544]
[1767535587971,0.00478179,3139.2,3137.9,0.1417544]
[1767535588169,4.36378179,3139.2,3137.9,0.14492605]
[1767535590076,4.36378179,3139.2,3138.1,0.1417544]
[1767535595280,4.36378179,3139.2,3138.1,6.1417544]
[1767535599883,4.36378179,3139.2,3138.2,0.13388472]
[1767535604069,4.36378179,3139.2,3138.3,0.13388472]
[1767535604270,4.36578179,3139.2,3138.3,0.13388472]
[1767535612286,4.36578179,3139.2,3138.4,0.13388472]
[1767535617397,4.36578179,3139.2,3138.5,0.13668412]
[1767535620196,0.00478179,3139.2,3138.5,6.13668412]
[1767535620389,4.362,3139.8,3138.6,0.1430389]
[1767535622394,4.362,3139.8,3138.7,0.1430389]
[1767535622898,4.362,3139.8,3138.8,0.1430389]
[1767535623086,0.15928,3140.5,3138.8,0.1430389]
[1767535623286,4.363,3140.4,3138.8,0.1430389]
[1767535624987,4.363,3140.4,3139.0,0.3023889]
[1767535625182,4.363,3140.4,3139.2,0.1430389]
[1767535627589,4.363,3140.4,3139.1,0.15935]
[1767535627794,4.363,3140.4,3139.1,6.15935]
[1767535629096,4.363,3140.4,3138.9,0.1430389]
[1767535634193,4.363,3140.4,3139.0,0.1430389]
[1767535636499,4.363,3140.4,3139.2,0.1430389]
[1767535636802,7.55,3140.8,3139.3,0.3023789]
[1767535636996,7.55,3140.8,3139.4,0.1430389]
[1767535637194,4.363,3140.8,3139.5,0.1430389]
[1767535639705,4.363,3140.8,3139.5,0.3023589]
[1767535639907,4.363,3140.8,3139.7,0.1430389]
[1767535640696,0.12517529,3141.4,3139.7,0.1430389]
[1767535640898,4.362,3141.3,3139.7,0.1430389]
[1767535641503,4.362,3141.3,3140.1,0.00478179]
[1767535641798,4.362,3141.3,3140.1,0.15027932]
[1767535645405,3.186,3141.8,3140.1,0.15027932]
[1767535645406,3.186,3141.8,3140.1,6.15027932]
[1767535645610,3.186,3141.8,3140.2,0.1430389]
[1767535656616,3.186,3141.8,3140.3,0.14119121]
[1767535658819,3.186,3141.8,3140.3,6.14119121]
[1767535659021,3.186,3141.8,3140.4,0.14119121]
[1767535660020,3.18986102,3141.8,3140.4,0.14119121]
[1767535666923,0.00386102,3141.8,3140.4,0.14119121]
[1767535670731,0.00386102,3141.8,3140.6,0.14119121]
[1767535674528,0.00386102,3141.8,3140.7,0.14119121]
[1767535677227,0.00386102,3141.8,3140.7,0.30046121]
[1767535677428,0.00386102,3141.8,3140.8,0.13707358]
[1767535678430,0.00386102,3141.8,3140.7,0.15927]
[1767535678431,0.00386102,3141.8,3141.0,0.13707358]
[1767535678631,3.34418,3142.5,3141.0,0.13707358]
[1767535679324,3.185,3142.5,3141.0,0.13707358]
[1767535679526,3.18734755,3142.5,3141.0,0.13707358]
[1767535680835,3.18734755,3142.5,3141.2,0.13560197]
[1767535683034,0.00234755,3142.5,3141.2,0.13560197]
[1767535683236,0.00234755,3142.5,3141.2,0.29484197]
[1767535683439,0.00234755,3142.5,3141.3,0.13560197]
[1767535690236,1.23175051,3143.2,3141.6,0.13560197]
[1767535691044,1.23428759,3143.2,3142.1,0.00477411]
[1767535692245,6.0,3143.1,3142.1,0.00477411]
[1767535692446,6.0,3143.1,3141.6,0.13560197]
[1767535692447,0.00477411,3143.0,3141.6,0.13560197]
[1767535693140,6.00477411,3143.0,3141.6,0.13560197]
[1767535693344,0.140026,3142.8,3141.2,0.13560197]
[1767535693655,0.140026,3142.6,3140.8,0.13560197]
[1767535694044,0.140026,3142.6,3140.9,40.8]
[1767535695254,0.140026,3142.6,3140.9,40.93560197]
[1767535698447,0.140026,3142.6,3141.0,0.13560197]
[1767535706452,0.299196,3142.6,3141.0,0.13560197]
[1767535706651,0.13699141,3142.4,3140.6,0.13560197]
[1767535707049,0.29617141,3142.4,3140.6,0.13560197]
[1767535708159,0.29494297,3142.1,3140.6,0.13560197]
[1767535708364,0.29494297,3142.1,3140.2,5.74073151]
[1767535708365,0.15921,3141.9,3140.2,5.87633348]
[1767535708566,2.506,3141.8,3140.3,0.13560197]
[1767535709156,0.00477411,3141.4,3140.3,0.13560197]
[1767535726779,6.00477411,3141.4,3140.1,0.00245863]
[1767535731192,6.00477411,3141.4,3140.1,0.14381406]
[1767535731385,0.00477411,3141.4,3140.1,0.14381406]
[1767535731591,4.356,3141.3,3140.1,0.14381406]
[1767535732785,0.00477411,3141.4,3140.1,0.14381406]
[1767535732993,2.608,3141.3,3140.1,0.14381406]
[1767535733291,4.357,3141.3,3140.1,0.14381406]
[1767535735502,4.357,3141.2,3140.1,0.14381406]
[1767535735704,0.00477411,3141.4,3140.1,0.14381406]
[1767535735896,4.357,3141.3,3140.1,0.14381406]
[1767535743096,0.00477411,3141.4,3140.1,0.14381406]
[1767535743603,0.00477411,3141.4,3140.2,0.1422654]
[1767535744204,0.00477411,3141.4,3140.3,0.1422654]
[1767535744409,0.00477411,3141.4,3140.3,6.1422654]
[1767535744712,0.00477411,3141.4,3140.4,0.1422654]
[1767535745600,2.444,3141.9,3140.6,0.14703951]
[1767535745909,4.358,3142.1,3140.6,0.14703951]
[1767535747903,0.15918,3142.4,3140.6,0.14703951]
[1767535748208,4.358,3142.3,3140.6,0.14703951]
[1767535749311,0.15918,3142.4,3140.6,0.14703951]
[1767535749995,3.354,3142.3,3140.6,0.14703951]
[1767535750904,0.15918,3142.4,3140.6,0.14703951]
[1767535751111,4.358,3142.3,3140.7,0.1422654]
[1767535751405,4.357,3142.3,3140.7,0.1422654]
[1767535752295,4.357,3142.3,3140.9,0.1422654]
[1767535763718,4.51418,3142.4,3140.9,0.1422654]
[1767535773728,4.355,3142.4,3140.9,0.1422654]
[1767535774122,0.13319374,3142.6,3140.9,0.1422654]
[1767535774323,4.357,3142.5,3140.9,0.1422654]
[1767535778031,0.13319374,3142.6,3140.9,0.1422654]
[1767535778231,4.358,3142.5,3140.9,0.1422654]
[1767535782137,0.13454005,3142.4,3141.0,10.579]
[1767535787341,4.358,3142.5,3141.0,10.71357831]
[1767535788539,4.358,3142.5,3141.1,0.13457831]
[1767535794541,0.15917,3142.7,3141.1,0.13457831]
[1767535794742,4.356,3142.5,3141.1,0.13457831]
[1767535796755,4.356,3142.6,3141.1,0.13457831]
[1767535798651,0.15917,3142.7,3141.1,0.13457831]
[1767535798855,4.356,3142.6,3141.1,0.13457831]
[1767535800158,0.13206082,3142.8,3141.2,0.14509161]
[1767535800361,2.565,3142.8,3141.3,0.14509161]
[1767535801054,4.356,3143.1,3141.4,0.14509161]
[1767535801364,4.356,3143.1,3141.6,0.14509161]
[1767535808263,1.23428759,3143.2,3141.6,0.14509161]
[1767535809357,1.23428759,3143.2,3141.8,0.14509161]
[1767535809565,1.23428759,3143.2,3142.0,0.14509161]
[1767535810063,1.23428759,3143.2,3142.3,0.00477411]
[1767535810256,1.23428759,3143.2,3142.3,0.0079412]
[1767535826873,0.14034681,3143.1,3141.6,10.89922]
[1767535827075,0.14512092,3143.1,3141.6,10.89922]
[1767535827370,0.14512092,3143.1,3141.6,51.69922]
[1767535827875,0.14512092,3143.1,3141.6,51.70307373]
[1767535828968,0.14512092,3143.1,3141.7,0.15922]
[1767535836875,0.00477411,3143.1,3141.7,0.29907815]
[1767535837082,0.00477411,3143.1,3141.8,0.29906815]
[1767535837276,0.00477411,3143.1,3141.9,0.29905815]
[1767535837469,0.00477411,3143.1,3142.2,0.13985815]
[1767535847293,0.00477411,3143.1,3142.2,0.29904815]
[1767535847481,0.00477411,3143.1,3142.3,0.13724754]
[1767535854788,0.00477411,3143.1,3142.3,0.29642754]
[1767535854997,0.00477411,3143.1,3142.4,0.13724754]
[1767535860304,0.00477411,3143.1,3142.4,0.29642754]
[1767535860504,0.00477411,3143.1,3142.5,0.13827196]
[1767535861503,1.23428759,3143.2,3142.5,0.14304607]
[1767535862106,0.001,3143.6,3142.6,0.15917]
[1767535862700,0.14432606,3143.6,3142.5,0.00477411]
[1767535862912,6.14432606,3143.6,3142.5,0.00477411]
[1767535863206,0.14332606,3143.5,3142.5,0.00477411]
[1767535900236,0.14332606,3143.5,3142.5,6.16394411]
[1767535904343,0.14332606,3143.5,3142.5,0.16394411]
[1767535905346,0.14332606,3143.5,3142.5,6.16394411]
[1767535906951,0.15905,3145.0,3142.9,0.15916]
[1767535907248,4.344,3144.4,3142.9,0.15916]
[1767535907647,0.15905,3145.0,3142.9,40.95916]
[1767535907843,4.344,3144.6,3142.9,40.95916]
[1767535908036,4.34731522,3144.6,3142.9,40.95916]
[1767535908441,10.34731522,3144.6,3142.9,40.95916]
[1767535909051,0.13608704,3144.5,3142.9,40.95916]
[1767535910248,0.13608704,3144.5,3142.9,0.15916]
[1767535910649,4.347,3144.4,3142.9,0.15916]
[1767535910953,0.13608704,3144.3,3142.9,0.15916]
[1767535911152,0.13608704,3144.2,3142.9,0.15916]
[1767535913351,0.13608704,3144.1,3142.6,5.74073151]
[1767535913547,0.13608704,3144.0,3142.6,5.74073151]
[1767535913853,0.13608704,3144.0,3142.5,0.00477411]
[1767535913854,0.13608704,3144.0,3142.7,40.8]
[1767535914155,0.13608704,3144.0,3142.7,40.95916]
[1767535920247,0.13608704,3144.0,3142.7,40.8]
[1767535920458,0.14449011,3143.9,3142.5,0.00477411]
[1767535921049,0.14449011,3143.8,3142.5,0.00477411]
[1767535921249,0.14449011,3143.7,3142.5,0.00477411]
[1767535923055,0.14449011,3143.5,3142.5,0.00477411]
[1767535928261,0.14449011,3143.3,3142.5,0.00477411]
[1767535938790,4.49449011,3143.7,3142.5,0.00477411]
[1767535939686,0.14449011,3143.7,3142.5,0.00477411]
[1767535939883,0.14449011,3143.7,3142.5,0.16395411]
[1767535940484,1.77949011,3144.1,3142.7,0.15916]
[1767535940684,0.14449011,3144.1,3142.7,0.15916]
[1767535942998,0.14449011,3144.1,3142.5,0.00477411]
[1767535944591,0.14449011,3144.0,3142.5,0.00477411]
[1767535952400,3.32749011,3144.0,3142.5,0.00477411]
[1767535952609,0.13459097,3143.9,3142.5,0.00477411]
[1767535953801,0.13213367,3143.7,3142.5,0.00477411]
[1767535969216,0.13213367,3143.5,3142.5,0.00477411]
[1767535970414,0.13213367,3143.4,3142.5,0.00477411]
[1767535985823,2.335,3143.7,3142.5,6.00477411]
[1767535986020,0.13478287,3143.8,3142.6,0.15917]
[1767535986215,0.13478287,3143.8,3142.6,6.15917]
[1767535987925,0.13478287,3143.8,3142.7,0.15916]
[1767535988315,0.13478287,3144.3,3142.8,6.15916]
[1767535988617,0.13478287,3144.3,3142.8,0.15916]
[1767535989625,0.13478287,3144.3,3142.9,40.8]
[1767535990325,0.13478287,3144.3,3142.8,0.15916]
[1767536001330,0.13478287,3144.3,3143.0,0.15915]
[1767536021964,0.13478287,3144.3,3143.1,0.15914]
[1767536027168,0.00331522,3144.6,3143.2,0.15914]
[1767536027556,0.14135324,3144.6,3143.2,0.15914]
[1767536034260,0.14135324,3144.6,3143.3,0.15913]
[1767536036560,0.14135324,3144.6,3142.9,51.886]
[1767536039369,0.14135324,3144.6,3143.1,0.15914]
[1767536039963,0.13803802,3144.5,3143.1,0.15914]
[1767536040672,0.13130452,3144.3,3142.5,5.8613506]
[1767536041063,0.13130452,3144.3,3142.6,40.8]
[1767536041968,6.29039452,3144.3,3142.5,0.16394411]
[1767536042173,0.13130452,3144.2,3142.5,0.16394411]
[1767536043975,0.13130452,3144.0,3142.5,0.16394411]
[1767536044174,0.13130452,3143.8,3142.5,0.16394411]
[1767536049471,4.47830452,3143.8,3142.5,0.16394411]
[1767536050274,0.13130452,3143.8,3142.5,0.16394411]
[1767536051977,0.29039452,3144.3,3142.5,6.16394411]
[1767536052183,0.13130452,3144.1,3142.5,0.16394411]
[1767536052675,0.13130452,3144.1,3142.5,0.00477411]
[1767536052876,0.13130452,3143.9,3142.5,0.00477411]
[1767536060891,0.13130452,3143.7,3142.5,0.00477411]
[1767536111533,0.13345158,3143.6,3142.0,5.69740649]
[1767536111732,0.13345158,3143.3,3141.9,5.85660649]
[1767536112129,0.13345158,3143.2,3141.9,5.85660649]
[1767536122832,0.13345158,3143.2,3142.0,0.1592]
[1767536123237,0.00477411,3143.4,3142.0,0.1592]
[1767536124239,0.00477411,3143.4,3142.1,40.8]
[1767536126844,0.13822569,3143.4,3142.1,40.8]
[1767536129743,0.13822569,3143.4,3142.0,0.1592]
[1767536136151,0.13822569,3143.4,3142.1,0.15919]
[1767536147861,0.13290788,3143.3,3142.0,5.69740649]
[1767536148061,0.13290788,3143.3,3141.7,5.69740649]
[1767536149758,0.13290788,3143.3,3141.6,46.66048022]
[1767536153060,0.13290788,3143.3,3141.6,40.96307373]
[1767536153465,0.13290788,3143.2,3141.6,0.16307373]
[1767536156062,0.13290788,3143.1,3141.6,0.00385373]
[1767536156566,6.13290788,3143.1,3141.6,0.00385373]
[1767536156865,0.13290788,3143.0,3141.6,0.00385373]
[1767536159767,0.13290788,3142.9,3141.6,0.00385373]
[1767536163565,0.14133815,3142.7,3141.6,0.00385373]
[1767536169478,1.359,3142.6,3141.6,0.00385373]
[1767536171780,1.50033815,3142.6,3141.6,0.00385373]
[1767536172973,0.14133815,3142.6,3141.6,0.00385373]
[1767536173174,1.508,3142.5,3141.6,0.00385373]
[1767536175781,4.48633815,3142.6,3141.6,0.00385373]
[1767536176777,0.14133815,3142.6,3141.6,0.00385373]
[1767536176981,4.48633815,3142.6,3141.6,0.00385373]
[1767536179787,0.14133815,3142.5,3141.6,0.00385373]
[1767536182487,0.14133815,3142.5,3141.0,58.31640649]
[1767536182885,0.14133815,3142.5,3141.0,52.619]
[1767536183396,0.14133815,3142.5,3141.0,52.62127443]
[1767536184187,0.14133815,3142.5,3141.0,11.82127443]
[1767536185894,0.14133815,3142.5,3141.0,11.98052443]
[1767536188493,0.14133815,3142.5,3141.0,0.00227443]
[1767536191992,0.14129421,3142.4,3141.0,0.00227443]
[1767536192197,0.1452415,3142.4,3141.0,0.00227443]
[1767536197796,6.1452415,3142.4,3141.0,0.00227443]
[1767536198101,0.14197057,3142.3,3141.0,0.00227443]
[1767536199797,0.14197057,3142.1,3141.0,0.00227443]
[1767536201302,0.14197057,3142.1,3140.3,0.15929]
[1767536201503,0.14197057,3142.0,3139.8,0.15931]
[1767536201901,0.14197057,3141.9,3139.9,40.8]
[1767536202106,0.14197057,3141.8,3139.9,40.8]
[1767536202298,0.14197057,3141.7,3139.8,0.15931]
[1767536202497,0.14197057,3141.7,3139.9,0.00334065]
[1767536203400,0.00477411,3141.1,3139.9,0.00334065]
[1767536204299,0.14674468,3141.1,3139.9,0.00334065]
[1767536210606,0.30599468,3141.1,3139.9,0.00334065]
[1767536210808,0.14197057,3141.0,3139.9,0.00334065]
[1767536212708,3.32697057,3141.0,3139.9,0.00334065]
[1767536212918,0.14197057,3140.9,3139.9,0.00334065]
[1767536220316,0.14197057,3140.9,3139.2,40.95934]
[1767536220317,0.14197057,3140.9,3139.2,0.15934]
[1767536221224,0.14197057,3140.9,3139.2,0.16345934]
[1767536221521,0.14197057,3140.9,3139.3,0.1329079]
[1767536221726,0.13956125,3140.7,3139.2,0.16345934]
[1767536226826,1.902,3140.8,3139.3,0.2922379]
[1767536234326,1.902,3140.8,3139.4,0.15933]
[1767536234724,0.00477411,3141.1,3140.0,0.1593]
[1767536234930,0.00477411,3141.1,3140.0,12.1733]
[1767536238734,0.00477411,3141.1,3139.6,46.49740649]
[1767536238735,0.14433536,3141.1,3139.6,40.8]
[1767536238934,0.14433536,3141.1,3139.6,52.83]
[1767536239429,0.14433536,3141.1,3139.4,0.15933]
[1767536239633,0.14433536,3141.1,3139.4,12.19133]
[1767536241435,0.16402411,3141.1,3139.4,12.19133]
[1767536241636,0.13956125,3141.0,3139.4,12.19133]
[1767536244957,0.13956125,3141.0,3139.4,12.032]
[1767536246065,0.13956125,3141.0,3139.2,0.00411934]
[1767536246249,0.13956125,3140.9,3139.2,12.06411934]
[1767536247250,6.13956125,3140.9,3139.2,0.00411934]
[1767536247463,0.13956125,3140.7,3139.2,0.00411934]
[1767536251762,0.13956125,3140.7,3139.3,12.082]
[1767536252566,0.13956125,3140.7,3139.2,0.00411934]
[1767536252866,0.13301471,3140.6,3139.2,0.00411934]
[1767536253164,0.29229471,3140.5,3139.2,0.00411934]
[1767536253356,0.13301471,3140.4,3139.2,0.00411934]
[1767536270660,0.13608764,3140.3,3139.2,0.00411934]
[1767536272271,0.29537764,3140.3,3139.2,0.00411934]
[1767536272571,0.13608764,3140.2,3139.2,0.00411934]
[1767536272771,0.13891969,3140.2,3139.2,0.00411934]
[1767536284987,0.13917446,3140.0,3139.2,0.00411934]
[1767536285188,0.13917446,3140.0,3138.4,40.8]
[1767536285683,0.13917446,3140.0,3138.0,5.69740649]
[1767536286183,0.13917446,3140.0,3138.1,40.8]
[1767536286587,0.13917446,3140.0,3138.1,40.9594]
[1767536286892,0.13917446,3140.0,3138.2,0.13675545]
[1767536288486,0.00477411,3139.4,3138.3,0.15939]
[1767536292192,0.00477411,3139.4,3138.4,6.0]
[1767536294395,0.00477411,3139.4,3138.3,0.15939]
[1767536294590,0.00477411,3139.4,3138.4,6.0]
[1767536302996,0.00477411,3139.4,3138.3,0.29614545]
[1767536303200,0.00477411,3139.4,3138.3,6.29614545]
[1767536306402,0.00477411,3139.4,3138.4,0.13675545]
[1767536308902,0.13917446,3140.1,3138.6,0.13675545]
[1767536309101,0.00283205,3140.2,3138.7,0.29612545]
[1767536309607,0.00283205,3140.2,3138.9,0.13675545]
[1767536310510,0.00283205,3140.2,3138.9,0.29611545]
[1767536325133,0.00283205,3140.2,3139.0,0.3040427]
[1767536328136,0.00283205,3140.2,3139.1,0.1446927]
[1767536328728,0.00283205,3140.2,3139.2,40.8]
[1767536329826,0.13387657,3140.6,3139.2,40.95934]
[1767536330840,0.13741368,3140.6,3139.2,40.95934]
[1767536331040,0.13741368,3140.6,3139.2,0.15934]
[1767536335143,0.13741368,3140.6,3138.9,40.8]
[1767536335940,0.13741368,3140.6,3138.9,40.95936]
[1767536338949,0.13741368,3140.6,3138.9,46.65676649]
[1767536344254,0.13741368,3140.6,3139.0,0.15935]
[1767536344452,0.13741368,3140.6,3139.1,0.13366121]
[1767536344652,0.13741368,3140.6,3139.1,0.29301121]
[1767536344843,0.13741368,3140.6,3139.2,40.93366121]
[1767536345046,0.13741368,3140.6,3139.3,12.209]
[1767536347154,0.00353711,3140.6,3139.3,12.209]
[1767536350356,0.00353711,3140.6,3139.4,40.8]
[1767536352353,0.13766064,3140.6,3139.4,40.8]
[1767536352554,0.13766064,3140.6,3139.3,12.24]
[1767536361056,0.00353711,3140.6,3139.3,12.37366121]
[1767536362060,0.00353711,3140.6,3139.4,0.29299121]
[1767536363761,0.00353711,3140.6,3139.4,0.15933]
[1767536365075,0.13766064,3140.6,3139.4,0.15933]
[1767536372272,0.13766064,3140.6,3139.2,12.299]
[1767536372573,0.13766064,3140.6,3139.1,5.69740649]
[1767536372774,0.13766064,3140.6,3139.0,5.69740649]
[1767536372970,0.13766064,3140.6,3139.1,40.8]
[1767536373272,0.13766064,3140.6,3139.0,5.69740649]
[1767536373575,0.13766064,3140.6,3138.9,5.85676649]
[1767536373873,0.13766064,3140.6,3138.9,46.65676649]
[1767536374065,0.13766064,3140.6,3138.9,58.98476649]
[1767536374261,0.13766064,3140.6,3138.9,5.69740649]
[1767536374460,0.13766064,3140.6,3138.6,7.41140255]
[1767536374461,0.14365724,3140.2,3138.6,0.00477411]
[1767536377868,4.336,3140.1,3138.6,0.00477411]
[1767536378068,0.14365724,3140.0,3138.6,0.00477411]
[1767536400092,0.14365724,3140.0,3138.6,18.55114411]
[1767536405103,0.14365724,3140.0,3138.6,12.55114411]
[1767536410219,0.14365724,3140.0,3138.7,6.0]
[1767536414316,0.14365724,3140.0,3138.6,12.55114411]
[1767536414514,0.14365724,3140.0,3138.6,18.55114411]
[1767536422218,0.14365724,3140.0,3138.6,0.00477411]
[1767536422517,0.13431395,3139.9,3138.6,0.00477411]
[1767536425810,0.15929,3140.2,3138.6,0.00477411]
[1767536426006,0.29360395,3140.2,3138.6,0.00477411]
[1767536427221,0.13431395,3140.1,3138.6,0.00477411]
[1767536428325,0.13431395,3140.1,3138.7,12.512]
[1767536442337,0.13431395,3140.1,3138.7,12.67137]
[1767536443936,0.14347956,3140.5,3139.0,0.15935]
[1767536444131,0.00353711,3140.6,3139.1,0.13498659]
[1767536445338,0.00353711,3140.6,3139.2,0.29432659]
[1767536451039,0.14701667,3140.6,3139.2,0.15934]
[1767536455437,0.14347956,3140.5,3138.8,5.69740649]
[1767536456242,0.14347956,3140.5,3138.6,5.8615506]
[1767536457654,0.14347956,3140.5,3138.6,0.16414411]
[1767536463538,0.13693542,3140.4,3138.6,0.16414411]
[1767536475951,0.13693542,3140.4,3138.7,0.30057721]
[1767536477658,0.13693542,3140.4,3138.8,0.14120721]
[1767536477959,0.13693542,3140.4,3138.9,12.78720721]
[1767536481858,0.13693542,3140.4,3138.9,12.646]
[1767536494166,4.46193542,3140.4,3138.9,12.646]
[1767536507378,0.13693542,3140.4,3138.9,12.78207116]
[1767536507573,0.00353711,3140.6,3139.1,0.29542116]
[1767536507776,0.00353711,3140.6,3139.2,0.13607116]
[1767536514281,0.14545886,3140.4,3138.7,0.15937]
[1767536514776,0.14545886,3140.4,3138.6,5.7021806]
[1767536515178,0.14545886,3140.4,3138.6,0.00477411]
[1767536518882,0.30473886,3140.4,3138.6,0.00477411]
[1767536519086,0.14545886,3140.3,3138.6,0.00477411]
[1767536531684,0.30474886,3140.3,3138.6,0.00477411]
[1767536532481,0.14136777,3140.2,3138.6,0.00477411]
[1767536549923,0.30065777,3140.2,3138.6,0.00477411]
[1767536550917,0.13403799,3140.1,3138.6,0.00477411]
[1767536574851,0.97575514,3140.0,3138.0,0.00413463]
[1767536575049,0.15933,3139.5,3138.0,0.14216582]
[1767536575846,4.319,3139.6,3138.0,0.14216582]
[1767536581843,0.00477411,3139.7,3138.0,0.14216582]
[1767536582453,0.00477411,3139.7,3138.2,0.13263002]
[1767536587965,0.00477411,3139.7,3138.4,0.13263002]
[1767536596267,0.00477411,3139.7,3138.6,0.13263002]
[1767536600371,0.00477411,3139.7,3138.7,0.13263002]
[1767536606175,0.00477411,3139.7,3138.8,0.13263002]
[1767536621390,0.00477411,3139.7,3138.4,0.1399848]
[1767536621391,6.00477411,3139.7,3138.4,0.1399848]
[1767536621583,0.00477411,3139.7,3138.4,0.1399848]
[1767536631503,6.0,3139.6,3138.4,0.1399848]
[1767536631705,6.0,3139.6,3138.2,5.7228639]
[1767536631897,0.16409411,3139.7,3138.2,5.7228639]
[1767536632091,6.15932,3139.6,3138.0,0.14411943]
[1767536633802,4.315,3139.5,3138.0,0.14411943]
[1767536639808,4.318,3139.4,3138.0,0.14411943]
[1767536640309,4.318,3139.5,3138.0,0.14411943]
[1767536642215,0.15932,3139.6,3138.0,0.14411943]
[1767536642406,4.319,3139.5,3138.0,0.14411943]
[1767536642608,0.00477411,3139.7,3138.0,0.14411943]
[1767536642809,3.01477411,3139.7,3138.2,0.13132562]
[1767536643109,4.32377411,3139.7,3138.3,0.13132562]
[1767536644911,0.00477411,3139.7,3138.3,0.13132562]
[1767536645118,4.32377411,3139.7,3138.3,0.13132562]
[1767536647417,4.32277411,3139.7,3138.3,0.13132562]
[1767536656232,0.00477411,3139.7,3138.3,0.13132562]
[1767536656433,4.32177411,3139.7,3138.3,0.13132562]
[1767536656926,0.00477411,3139.7,3138.3,0.13132562]
[1767536658633,0.00477411,3139.7,3138.3,0.29071562]
[1767536658830,0.00477411,3139.7,3138.4,0.13132562]
[1767536660328,0.00477411,3139.7,3138.5,0.13132562]
[1767536692754,6.0,3139.6,3138.5,0.13132562]
[1767536697060,4.317,3139.5,3138.5,0.13132562]
[1767536700068,0.00477411,3139.7,3138.5,0.13132562]
[1767536700261,8.443,3139.6,3138.5,0.13132562]
[1767536705169,2.443,3139.6,3138.5,0.13132562]
[1767536705368,2.60232,3139.6,3138.1,0.13760777]
[1767536713770,0.00477411,3139.7,3138.1,0.13760777]
[1767536714068,3.197,3139.6,3138.1,0.13760777]
[1767536720276,3.35632,3139.6,3138.1,0.13760777]
[1767536722083,0.15932,3139.6,3138.1,0.13760777]
[1767536722274,4.326,3139.5,3138.1,0.13760777]
[1767536726384,0.01135954,3139.4,3137.6,0.13760777]
[1767536726585,0.17070954,3139.1,3137.4,0.15943]
[1767536727084,0.17070954,3139.1,3137.4,0.13760777]
[1767536727487,0.17070954,3139.1,3137.4,0.14048318]
[1767536731984,0.15935,3139.0,3137.4,0.14048318]
[1767536732190,0.01135954,3139.1,3137.4,0.00287541]
[1767536733091,0.15936,3138.9,3137.4,0.00287541]
[1767536733994,0.15936,3138.8,3137.4,0.00287541]
[1767536738693,0.15938,3138.5,3137.4,0.00287541]
[1767536739995,0.15942,3137.7,3136.8,1.24805526]
[1767536740193,3.188,3137.6,3136.8,1.23834291]
[1767536740590,3.188,3137.6,3136.8,0.54044248]
[1767536740799,0.00477411,3137.5,3136.8,0.54044248]
[1767536741001,4.325,3137.4,3136.8,0.54418204]
[1767536749107,0.0083593,3137.5,3136.8,0.54418204]
[1767536749309,4.333,3137.3,3136.8,0.54418204]
[1767536750300,4.33424238,3137.3,3136.8,0.54418204]
[1767536750502,13.523,3137.2,3135.7,0.14095174]
[1767536750703,7.523,3137.2,3135.7,0.14095174]
[1767536751496,7.523,3137.2,3135.7,0.14395944]
[1767536755113,4.335,3137.1,3135.7,0.14395944]
[1767536755301,4.335,3137.0,3135.7,0.14395944]
[1767536755501,7.524,3137.0,3135.7,0.14395944]